bitfinex-derivatives/quotes_ETHF0:USTF0_20241104
["timestamp","ask_amount","ask_price","bid_price","bid_amount"]
[1730764185504,3.2078,2397.1,2397.0,1.61255871]
[1730764186001,0.41737,2397.3,2397.2,0.41738]
[1730764186207,40.8,2397.4,2397.1,0.6402]
[1730764186408,0.41738,2397.2,2397.1,1.05759]
[1730764186999,0.41737,2397.3,2397.1,0.6402]
[1730764187204,40.8,2397.4,2397.1,0.6402]
[1730764187407,0.41738,2397.2,2397.1,0.6402]
[1730764187912,0.41741,2397.1,2396.8,0.41744]
[1730764188212,0.41742,2397.0,2396.9,0.57113854]
[1730764188408,0.4174,2397.1,2396.9,0.98855854]
[1730764188600,0.4174,2397.1,2396.9,0.41742]
[1730764189107,0.41741,2397.0,2396.9,0.41742]
[1730764189411,0.41741,2397.0,2396.9,0.98844843]
[1730764189803,0.41741,2397.0,2396.9,0.98835186]
[1730764190201,0.41741,2397.0,2396.9,0.98835273]
[1730764190806,0.5956,2397.3,2396.9,3.77873273]
[1730764191006,0.5956,2397.3,2396.9,3.2078]
[1730764191209,0.4174,2397.1,2397.0,0.4174]
[1730764191413,0.4174,2397.1,2396.9,3.2078]
[1730764191414,0.5956,2397.3,2396.9,3.2078]
[1730764191708,0.5956,2397.3,2397.0,0.41741]
[1730764191709,0.4174,2397.1,2397.0,0.41741]
[1730764191902,0.41738,2397.2,2397.1,0.41738]
[1730764192105,0.41738,2397.2,2396.9,3.2078]
[1730764192106,40.8,2397.4,2396.9,3.2078]
[1730764192309,40.8,2397.4,2396.9,3.62522]
[1730764192310,0.41741,2397.0,2396.9,3.62522]
[1730764192608,41.84338,2397.4,2397.0,0.4174]
[1730764192609,0.4174,2397.1,2397.0,0.4174]
[1730764193303,40.8,2397.4,2396.9,3.2078]
[1730764193510,0.41738,2397.2,2397.1,0.41739]
[1730764193706,40.8,2397.4,2396.9,3.2078]
[1730764193907,0.4174,2397.1,2397.0,0.4174]
[1730764194408,0.41739,2397.2,2397.0,0.4174]
[1730764195312,0.4174,2397.1,2397.0,0.4174]
[1730764195609,0.41738,2397.3,2397.1,0.41739]
[1730764196003,40.8,2397.4,2396.9,3.2078]
[1730764196212,0.41739,2397.2,2397.0,0.4174]
[1730764198611,40.8,2397.4,2396.9,3.2078]
[1730764198912,0.41736,2397.3,2397.2,0.41737]
[1730764199115,41.21735,2397.4,2397.2,0.41737]
[1730764200010,0.41736,2397.3,2397.2,0.41737]
[1730764200620,0.41736,2397.3,2396.9,3.2078]
[1730764200811,0.41736,2397.3,2397.1,0.41738]
[1730764201611,0.41736,2397.3,2396.9,3.2078]
[1730764201612,41.21736,2397.4,2397.2,0.41737]
[1730764201812,0.41736,2397.3,2397.2,0.41737]
[1730764202212,40.8,2397.4,2396.9,3.2078]
[1730764202406,0.41737,2397.3,2397.1,0.41739]
[1730764202614,0.41737,2397.3,2396.9,3.2078]
[1730764202814,0.41737,2397.3,2397.2,0.41738]
[1730764203219,40.8,2397.4,2396.9,3.2078]
[1730764203410,0.41736,2397.3,2397.0,0.41741]
[1730764203615,0.41739,2397.2,2397.0,0.4174]
[1730764203810,40.8,2397.4,2396.9,3.2078]
[1730764204011,41.21735,2397.4,2397.3,0.41736]
[1730764204320,40.8,2397.4,2397.3,0.41736]
[1730764204520,41.21734,2397.4,2397.3,0.41736]
[1730764205416,40.8,2397.4,2397.3,0.41736]
[1730764205618,41.21734,2397.4,2397.3,0.41736]
[1730764205822,41.21734,2397.4,2397.0,0.57052014]
[1730764206015,41.21734,2397.4,2397.2,0.41736]
[1730764206221,40.8,2397.4,2397.1,0.41738]
[1730764206416,40.8,2397.4,2396.9,3.2078]
[1730764206609,0.4174,2397.1,2396.9,0.41742]
[1730764206814,0.41739,2397.2,2396.9,3.2078]
[1730764207014,40.8,2397.4,2396.9,3.2078]
[1730764207316,41.21735,2397.4,2397.2,0.41737]
[1730764207516,0.41737,2397.3,2397.1,0.41739]
[1730764208517,0.41737,2397.3,2396.8,0.6016]
[1730764208518,7.379,2397.3,2396.8,0.6016]
[1730764208722,7.379,2397.3,2396.6,3.62527]
[1730764208723,0.41746,2396.8,2396.6,3.62527]
[1730764208918,3.26015625,2397.2,2396.6,3.2078]
[1730764208919,4.30360625,2397.2,2396.6,3.2078]
[1730764209120,1.06096,2396.7,2396.6,3.2078]
[1730764209318,1.06096,2396.7,2396.6,3.77879411]
[1730764210317,1.06096,2396.7,2396.6,3.2078]
[1730764210518,1.06096,2396.7,2396.6,0.57117207]
[1730764210519,0.6435,2396.7,2396.6,0.57117207]
[1730764210714,1.06096,2396.7,2396.6,0.57117207]
[1730764210920,1.06096,2396.7,2396.6,3.77897207]
[1730764211620,0.41753,2396.3,2396.2,1.08954231]
[1730764211818,0.5947,2396.6,2396.2,0.5750911]
[1730764212027,0.41751,2396.5,2396.3,0.9926111]
[1730764212229,0.41751,2396.5,2396.3,0.41752]
[1730764212421,0.41751,2396.5,2396.4,0.57520869]
[1730764213127,0.5942,2396.5,2396.2,0.41754]
[1730764213317,1.01171,2396.5,2396.3,0.99274634]
[1730764213628,1.0117,2396.5,2396.4,0.57521634]
[1730764213930,1.0117,2396.5,2396.3,0.41753]
[1730764214135,1.0117,2396.5,2396.4,0.57533048]
[1730764214317,0.4175,2396.5,2396.4,0.57533048]
[1730764216831,0.41754,2396.3,2396.1,3.62536]
[1730764217032,0.41754,2396.3,2396.2,1.4957475]
[1730764217235,41.3947,2396.6,2396.2,1.4957475]
[1730764217440,41.3947,2396.6,2396.3,0.5752875]
[1730764217740,1.61425662,2396.8,2396.6,0.41747]
[1730764217941,1.61425662,2396.9,2396.6,0.41747]
[1730764218141,2.03169662,2396.9,2396.7,1.62276]
[1730764218344,0.5859,2397.0,2396.8,0.41745]
[1730764218345,1.00332,2397.0,2396.8,0.41745]
[1730764218639,2.03165662,2397.1,2396.9,0.99256613]
[1730764218938,0.4174,2397.1,2397.0,0.57513386]
[1730764219537,4.82205662,2397.4,2397.0,0.57513386]
[1730764219738,3.2078,2397.4,2397.1,1.20893386]
[1730764220051,0.41738,2397.2,2397.1,0.6338]
[1730764220342,3.2078,2397.4,2397.1,1.20904891]
[1730764220544,3.2078,2397.4,2397.3,0.41736]
[1730764220847,41.4336,2397.6,2397.3,0.99260891]
[1730764221140,0.4173,2397.7,2397.4,0.41734]
[1730764221540,0.4173,2397.7,2397.3,0.6248]
[1730764221541,44.42508,2397.8,2397.6,0.4173]
[1730764221740,3.62508,2397.8,2397.6,0.4173]
[1730764221943,3.62508,2397.8,2397.5,4.21172]
[1730764222142,3.62508,2397.8,2397.6,0.57525944]
[1730764222341,3.62508,2397.8,2397.5,4.21172]
[1730764222538,3.62508,2397.8,2397.6,0.5752912]
[1730764222741,3.62508,2397.8,2397.5,4.21172]
[1730764222949,0.41729,2397.7,2397.6,0.57528996]
[1730764223144,3.26015625,2397.7,2397.3,0.6248]
[1730764223339,0.41733,2397.5,2397.4,0.57531082]
[1730764223538,41.21733,2397.5,2397.4,0.57531082]
[1730764224746,0.41731,2397.6,2397.4,8.37164082]
[1730764224948,0.41731,2397.6,2397.5,0.57531082]
[1730764226540,40.8,2397.7,2397.5,0.57531082]
[1730764226541,41.21731,2397.7,2397.5,0.57531082]
[1730764226741,41.21731,2397.7,2397.4,3.62513]
[1730764226742,41.21731,2397.7,2397.6,0.57531082]
[1730764227341,41.21731,2397.7,2397.4,3.62513]
[1730764227342,0.41731,2397.6,2397.4,3.62513]
[1730764227545,0.41731,2397.6,2397.5,0.57515502]
[1730764228444,40.8,2397.7,2397.5,0.57515502]
[1730764228747,40.8,2397.7,2397.5,0.41732]
[1730764228946,40.8,2397.7,2397.6,1.60520985]
[1730764229345,3.62508,2397.8,2397.6,1.60520985]
[1730764229544,3.62508,2397.8,2397.6,0.6128]
[1730764229744,3.62508,2397.8,2397.7,0.57502675]
[1730764229953,3.2078,2397.8,2397.7,0.57502675]
[1730764230442,3.62507,2397.8,2397.7,0.57502675]
[1730764231041,0.41727,2397.9,2397.7,0.99231675]
[1730764231244,0.41727,2397.9,2397.7,0.41729]
[1730764231550,0.41726,2397.9,2397.6,1.0301]
[1730764231840,0.41726,2397.9,2397.7,0.99212294]
[1730764232048,0.41726,2397.9,2397.7,0.41728]
[1730764232247,0.41726,2397.9,2397.6,1.0301]
[1730764232442,0.41726,2397.9,2397.7,0.57476136]
[1730764232645,0.41726,2397.9,2397.7,0.41729]
[1730764232841,0.41726,2397.9,2397.8,0.628]
[1730764233848,40.8,2398.0,2397.6,0.6128]
[1730764234052,0.41729,2397.7,2397.6,0.6128]
[1730764234253,40.8,2398.0,2397.6,1.18749743]
[1730764234444,40.8,2398.0,2397.6,0.6128]
[1730764234751,0.41729,2397.7,2397.6,0.6128]
[1730764234942,0.41729,2397.7,2397.6,1.18743451]
[1730764235351,40.8,2398.0,2397.6,1.18743451]
[1730764235648,0.41729,2397.7,2397.6,0.6128]
[1730764235843,0.41729,2397.7,2397.6,1.18737513]
[1730764238147,0.41729,2397.7,2397.2,3.2078]
[1730764238148,0.41736,2397.3,2397.2,3.2078]
[1730764238353,0.41736,2397.3,2397.2,5.01623587]
[1730764238559,0.41736,2397.3,2397.2,4.4417]
[1730764238748,0.41736,2397.3,2397.2,4.85908]
[1730764238949,0.41735,2397.4,2397.2,4.4417]
[1730764239254,0.41736,2397.3,2397.2,4.4417]
[1730764239550,4.30358625,2397.3,2396.7,1.08954231]
[1730764239756,0.41745,2396.8,2396.7,0.41746]
[1730764239958,0.41745,2396.8,2396.7,0.98913701]
[1730764240155,0.41745,2396.8,2396.7,0.57167701]
[1730764240350,0.41746,2396.7,2396.6,3.2078]
[1730764240551,0.41746,2396.7,2396.6,3.77947551]
[1730764240756,0.41746,2396.7,2396.6,3.2078]
[1730764241456,0.41746,2396.7,2396.6,3.62528]
[1730764241655,0.41746,2396.7,2396.6,3.2078]
[1730764241851,3.2078,2397.0,2396.5,1.68919]
[1730764242060,0.41748,2396.6,2396.5,1.68919]
[1730764242258,0.41748,2396.7,2396.5,2.26083582]
[1730764242457,0.41748,2396.6,2396.5,1.68919]
[1730764242658,0.41748,2396.6,2396.5,1.84330991]
[1730764242857,0.41748,2396.6,2396.5,1.2717]
[1730764243346,0.41748,2396.6,2396.2,3.2078]
[1730764243347,0.41753,2396.3,2396.2,3.2078]
[1730764243952,6.46795625,2396.7,2396.2,3.2078]
[1730764244156,0.41752,2396.4,2396.2,3.62534]
[1730764244355,3.2078,2396.7,2396.2,3.62534]
[1730764244356,0.41753,2396.3,2396.2,3.62534]
[1730764244551,0.41753,2396.3,2396.2,3.2078]
[1730764246557,0.41753,2396.4,2396.2,3.62535]
[1730764246753,0.41753,2396.4,2396.2,3.62534]
[1730764248648,3.2078,2396.7,2396.2,3.2078]
[1730764248857,0.41751,2396.5,2396.3,0.41753]
[1730764249160,0.41751,2396.5,2396.4,0.6092]
[1730764249661,3.2078,2396.7,2396.4,0.6092]
[1730764250058,3.62528,2396.7,2396.4,0.6092]
[1730764250256,3.62528,2396.7,2396.4,1.02671]
[1730764250459,0.41748,2396.7,2396.4,0.6092]
[1730764250655,0.41748,2396.7,2396.4,1.0267]
[1730764252358,0.41746,2396.7,2396.4,1.0267]
[1730764253370,0.6091,2396.8,2396.4,1.0267]
[1730764253556,0.6091,2396.8,2396.3,0.591]
[1730764253750,3.2078,2396.7,2396.2,3.2078]
[1730764253954,0.41753,2396.4,2396.2,3.2078]
[1730764254461,0.6348,2396.6,2396.2,3.2078]
[1730764254462,0.41753,2396.3,2396.2,3.2078]
[1730764254965,0.41753,2396.3,2396.2,3.62535]
[1730764255663,0.41753,2396.3,2396.2,0.41755]
[1730764258058,0.41753,2396.3,2396.1,3.8169]
[1730764258261,0.41755,2396.2,2396.1,4.23446]
[1730764258464,0.41755,2396.3,2396.2,0.41755]
[1730764258662,0.4175,2396.5,2396.1,4.23445]
[1730764258856,0.41755,2396.3,2396.1,4.23445]
[1730764259263,0.41755,2396.3,2396.2,0.41755]
[1730764260864,0.41755,2396.2,2396.1,3.8169]
[1730764261959,0.41755,2396.2,2396.1,4.23447]
[1730764262773,0.41755,2396.2,2396.1,3.8169]
[1730764263365,0.41755,2396.2,2396.1,4.23447]
[1730764264657,0.41755,2396.2,2396.1,1.02667]
[1730764264862,0.41755,2396.2,2396.1,4.23447]
[1730764265062,0.41755,2396.3,2396.2,0.41755]
[1730764265268,0.41753,2396.4,2396.3,0.41753]
[1730764265557,0.41755,2396.3,2396.2,0.41754]
[1730764271271,0.6348,2396.6,2396.1,3.8169]
[1730764271467,0.41751,2396.5,2396.4,0.41751]
[1730764271974,3.2078,2396.7,2396.1,3.8169]
[1730764272277,0.209,2397.0,2396.5,4.30391625]
[1730764272477,4.82205662,2397.4,2397.0,0.4174]
[1730764272478,0.41739,2397.2,2397.0,0.4174]
[1730764272871,0.41739,2397.2,2397.1,0.6405]
[1730764275677,4.172,2397.2,2396.6,0.6164]
[1730764275979,0.41741,2397.0,2396.7,0.41745]
[1730764276369,1.8438,2397.1,2396.6,3.8103]
[1730764276575,0.41746,2396.8,2396.6,3.8103]
[1730764276879,0.41746,2396.7,2396.6,3.8103]
[1730764277470,1.8438,2397.1,2396.6,4.22777]
[1730764277669,0.41743,2396.9,2396.7,0.41746]
[1730764278079,0.41743,2396.9,2396.6,3.8103]
[1730764278283,1.8438,2397.1,2396.7,0.98888481]
[1730764278467,0.41742,2397.0,2396.6,3.8103]
[1730764278668,3.2078,2397.2,2396.9,0.41742]
[1730764278878,40.8,2397.3,2396.6,3.8103]
[1730764279176,41.21738,2397.3,2397.0,0.4174]
[1730764279377,40.8,2397.3,2397.1,0.6298]
[1730764279567,41.21737,2397.3,2397.1,1.04719]
[1730764280273,40.8,2397.3,2397.1,1.04719]
[1730764280680,40.8,2397.3,2397.2,0.41738]
[1730764281179,3.2078,2397.5,2397.2,0.41738]
[1730764281180,3.2078,2397.5,2397.2,0.57171267]
[1730764281373,1.61425662,2397.7,2397.5,0.41732]
[1730764281575,1.61425662,2397.7,2397.6,1.03401]
[1730764281774,42.41425662,2397.7,2397.6,1.03401]
[1730764282275,1.61425662,2397.7,2397.6,5.20441]
[1730764282579,1.61425662,2397.7,2397.6,7.33507963]
[1730764283575,0.41726,2397.9,2397.6,6.91776963]
[1730764283783,0.41726,2397.9,2397.8,3.2078]
[1730764284279,0.41726,2397.9,2397.8,4.19670661]
[1730764285375,0.41726,2397.9,2397.8,0.98890661]
[1730764285976,41.21723,2398.1,2397.9,0.41725]
[1730764286386,0.41724,2398.0,2397.9,0.41725]
[1730764286578,41.21723,2398.1,2397.9,0.41725]
[1730764286979,0.41726,2397.9,2397.7,0.99309]
[1730764287178,40.8,2398.1,2397.9,0.41725]
[1730764287179,41.21723,2398.1,2397.9,0.41725]
[1730764287578,1.61425662,2398.3,2397.8,3.2078]
[1730764287784,1.61425662,2398.3,2398.2,0.4172]
[1730764287985,2.03144662,2398.3,2397.8,4.4758]
[1730764288181,40.8,2398.2,2398.1,0.41722]
[1730764288490,40.8,2398.2,2398.1,3.62502]
[1730764288682,1.61425662,2398.3,2398.2,0.4172]
[1730764288878,1.74445614,2398.3,2398.2,0.5846]
[1730764289489,1.74445614,2398.3,2397.8,4.4758]
[1730764289490,5.49686614,2398.3,2397.8,4.4758]
[1730764289683,5.49686614,2398.3,2398.0,0.41723]
[1730764289684,0.41722,2398.2,2398.0,0.41723]
[1730764289988,1.74446614,2398.3,2398.1,0.41722]
[1730764290192,0.4172,2398.3,2398.1,0.41722]
[1730764290482,0.41721,2398.2,2397.8,5.0879]
[1730764290688,0.41719,2398.3,2398.1,3.62501]
[1730764291285,40.8,2398.4,2398.2,4.1696]
[1730764291482,0.41718,2398.4,2398.3,0.6121]
[1730764291686,0.41717,2398.5,2398.3,1.02928]
[1730764291874,0.41717,2398.5,2398.3,0.6121]
[1730764292080,41.21717,2398.5,2398.3,1.02928]
[1730764292280,0.4172,2398.2,2397.8,3.62506]
[1730764292481,0.41724,2398.0,2397.9,0.6121]
[1730764293281,0.41724,2398.0,2397.9,3.8199]
[1730764293487,3.2078,2398.3,2397.5,3.82]
[1730764293678,3.2078,2398.3,2397.6,0.6164]
[1730764293679,0.41727,2397.9,2397.6,0.6164]
[1730764293883,0.41728,2397.8,2397.6,1.03369]
[1730764294078,0.41729,2397.7,2397.6,0.6164]
[1730764294384,3.2078,2398.3,2397.6,0.6164]
[1730764294586,41.009,2398.5,2397.9,3.2078]
[1730764294883,0.41722,2398.2,2398.0,0.41724]
[1730764295086,40.8,2398.5,2398.1,0.6164]
[1730764295289,3.62494,2398.6,2398.4,0.41716]
[1730764295495,3.2078,2398.6,2398.2,3.26015625]
[1730764295677,44.0078,2398.6,2398.3,1.04618]
[1730764295883,44.0078,2398.6,2398.5,0.41715]
[1730764296180,44.0078,2398.6,2398.2,0.4172]
[1730764296181,0.41717,2398.4,2398.2,0.4172]
[1730764296379,0.41719,2398.3,2398.2,0.4172]
[1730764296782,40.8,2398.6,2398.2,7.3774]
[1730764296982,0.41718,2398.4,2398.2,3.62499]
[1730764297193,0.41716,2398.5,2398.3,0.41719]
[1730764297390,0.41717,2398.4,2398.3,0.41719]
[1730764297989,0.41716,2398.5,2398.3,0.41717]
[1730764298184,0.41716,2398.5,2398.2,3.2078]
[1730764298386,40.8,2398.6,2398.4,0.41717]
[1730764298686,0.41715,2398.5,2398.2,3.2078]
[1730764298995,0.41715,2398.5,2398.3,0.41717]
[1730764301389,0.41715,2398.5,2398.4,3.2078]
[1730764301788,0.41711,2398.8,2398.4,7.3774]
[1730764301988,0.41713,2398.7,2398.5,0.5995]
[1730764302295,0.41713,2398.7,2398.6,1.00773]
[1730764302683,0.41713,2398.7,2398.6,0.5906]
[1730764303687,0.41713,2398.7,2398.4,3.62496]
[1730764303688,45.05049,2399.0,2398.4,3.62497]
[1730764303898,44.0078,2399.0,2398.4,3.2078]
[1730764304094,0.41714,2398.6,2398.4,3.2078]
[1730764304398,44.0078,2399.0,2398.4,3.2078]
[1730764304399,0.41715,2398.5,2398.4,3.2078]
[1730764306096,0.41713,2398.7,2398.5,0.41715]
[1730764306398,0.41713,2398.6,2398.5,0.41715]
[1730764306797,44.0078,2399.0,2398.3,0.5906]
[1730764306798,3.2078,2398.7,2398.3,0.5906]
[1730764306995,1.7864,2398.6,2398.3,0.5906]
[1730764307198,0.41716,2398.5,2398.4,3.62497]
[1730764307505,5.956,2398.6,2398.0,0.5934]
[1730764307695,0.4172,2398.3,2397.9,3.2078]
[1730764307896,0.41718,2398.4,2398.2,0.41719]
[1730764308096,0.41719,2398.3,2398.2,3.2078]
[1730764308304,1.7864,2398.6,2398.2,3.2078]
[1730764308603,1.7864,2398.6,2398.3,0.41718]
[1730764308791,0.41713,2398.7,2398.5,0.41714]
[1730764308989,0.41713,2398.7,2398.6,3.8227]
[1730764309193,0.41712,2398.7,2398.6,4.23983]
[1730764309389,40.8,2399.0,2398.7,0.41711]
[1730764309610,40.8,2399.0,2398.7,0.5934]
[1730764309804,0.41712,2398.7,2398.6,3.8227]
[1730764310299,0.41714,2398.6,2398.4,1.68416]
[1730764310501,3.2078,2398.9,2398.3,0.6149]
[1730764310502,0.41717,2398.4,2398.3,0.6149]
[1730764310691,0.5988,2398.5,2398.2,3.2078]
[1730764311098,0.41719,2398.3,2398.1,0.6182]
[1730764311298,0.4172,2398.3,2398.2,3.2078]
[1730764311496,0.41715,2398.6,2398.4,0.41715]
[1730764311701,0.5214,2398.7,2398.2,3.2078]
[1730764311902,0.41718,2398.4,2398.3,0.41718]
[1730764312103,0.41711,2398.8,2398.7,0.41711]
[1730764312305,0.41711,2398.8,2398.2,3.2078]
[1730764312306,0.5214,2399.1,2398.5,3.2078]
[1730764312499,0.41713,2398.7,2398.6,0.6182]
[1730764313098,0.41715,2398.5,2398.4,3.7244]
[1730764313397,3.2078,2398.8,2398.5,0.41714]
[1730764313607,0.41711,2398.8,2398.6,0.41712]
[1730764313802,0.41711,2398.8,2398.4,3.7244]
[1730764313803,0.41711,2398.8,2398.7,0.41712]
[1730764314106,0.41711,2398.8,2398.6,0.41713]
[1730764314300,0.41714,2398.6,2398.4,4.14156]
[1730764314501,0.41715,2398.6,2398.4,4.14156]
[1730764314696,0.5294,2398.8,2398.4,3.7244]
[1730764314905,0.41714,2398.6,2398.4,4.14156]
[1730764315098,0.5294,2398.8,2398.4,3.7244]
[1730764315408,0.41717,2398.4,2398.3,0.6182]
[1730764316402,44.0078,2399.0,2398.6,0.41713]
[1730764316608,44.0078,2399.0,2398.4,3.2078]
[1730764316799,0.5337,2398.9,2398.4,3.2078]
[1730764316997,0.5337,2398.9,2398.5,0.41714]
[1730764317206,0.41711,2398.8,2398.7,0.41712]
[1730764317416,0.41713,2398.6,2398.5,0.5208]
[1730764317603,0.41713,2398.6,2398.5,4.29524478]
[1730764317903,44.0078,2399.0,2398.5,3.7286]
[1730764318109,0.41713,2398.6,2398.5,4.14575]
[1730764318310,0.41713,2398.6,2398.5,4.7123931]
[1730764318505,44.0078,2399.0,2398.5,4.2952431]
[1730764318704,0.41711,2398.8,2398.6,0.9837731]
[1730764318906,44.0078,2399.0,2398.5,3.7286]
[1730764319204,44.0078,2399.0,2398.9,0.41708]
[1730764319402,44.0078,2399.0,2398.5,3.7286]
[1730764319603,0.41711,2398.8,2398.6,0.98408574]
[1730764319802,0.41711,2398.8,2398.7,0.98407574]
[1730764320100,0.41711,2398.8,2398.5,4.14575]
[1730764320309,0.41713,2398.6,2398.5,3.7286]
[1730764320504,0.41713,2398.6,2398.5,4.29569546]
[1730764321103,0.41713,2398.6,2398.5,0.56709546]
[1730764321409,4.58593,2398.6,2398.5,0.56727562]
[1730764321608,4.1688,2398.6,2398.3,0.6182]
[1730764321905,0.41717,2398.5,2398.4,0.98449356]
[1730764322106,0.5227,2398.9,2398.4,3.77512356]
[1730764322410,40.8,2399.0,2398.9,0.41708]
[1730764322710,3.2078,2399.4,2399.0,0.41706]
[1730764322711,0.41706,2399.1,2399.0,0.41706]
[1730764323008,0.41706,2399.1,2399.0,1.11282356]
[1730764323009,41.21706,2399.1,2399.0,1.11282356]
[1730764323407,41.21706,2399.1,2399.0,0.56732356]
[1730764324001,48.1758,2399.1,2398.7,1.08919504]
[1730764324208,48.1758,2399.1,2398.8,0.56790004]
[1730764324209,0.41708,2398.9,2398.8,0.56790004]
[1730764325203,0.3687,2399.0,2398.7,1.08919504]
[1730764325403,0.41706,2399.0,2398.9,1.63379257]
[1730764325603,0.41706,2399.0,2398.9,7.52063066]
[1730764325806,0.41706,2399.0,2398.9,8.04673066]
[1730764326209,0.41706,2399.0,2398.9,8.46381066]
[1730764326411,0.41706,2399.0,2398.9,8.04673066]
[1730764327508,0.41706,2399.0,2398.9,5.4706917]
[1730764327809,0.41706,2399.0,2398.9,5.47031433]
[1730764327999,0.41706,2399.0,2398.9,4.56052023]
[1730764328204,0.41706,2399.0,2398.9,5.46634323]
[1730764328403,0.41706,2399.0,2398.9,3.28795314]
[1730764328909,0.41706,2399.0,2398.9,1.81382809]
[1730764329213,0.41706,2399.0,2398.9,3.28851281]
[1730764329809,0.41706,2399.0,2398.9,4.92723011]
[1730764330006,0.41706,2399.0,2398.9,4.92723276]
[1730764331517,0.41706,2399.0,2398.9,4.92697779]
[1730764332222,0.41706,2399.0,2398.9,4.38065628]
[1730764332611,0.41706,2399.0,2398.9,2.90597156]
[1730764332812,0.41706,2399.0,2398.9,4.38170351]
[1730764333409,0.41706,2399.0,2398.9,3.09423039]
[1730764335927,0.41706,2399.0,2398.9,1.09239844]
[1730764336114,0.41706,2399.0,2398.9,0.56784315]
[1730764336115,4.1688,2399.0,2398.9,0.56784315]
[1730764336423,10.33481415,2399.0,2398.9,0.56784315]
[1730764336823,0.41712,2398.7,2398.6,0.5108]
[1730764337023,0.41712,2398.7,2398.6,1.98753823]
[1730764338827,5.38790329,2399.0,2398.6,3.07993667]
[1730764339036,0.41709,2398.9,2398.7,1.89384823]
[1730764339328,0.41709,2398.9,2398.8,1.47677505]
[1730764342620,0.41707,2399.0,2398.8,1.89386505]
[1730764342820,0.41707,2399.0,2398.8,1.50948844]
[1730764343022,0.41707,2399.0,2398.9,1.47687808]
[1730764343226,0.41707,2399.0,2398.9,0.56802942]
[1730764343432,0.41707,2399.0,2398.9,1.4768765]
[1730764350131,0.41708,2398.9,2398.8,1.09239844]
[1730764350323,0.41708,2398.9,2398.8,2.56937433]
[1730764350526,7.84603625,2398.9,2398.8,0.56806765]
[1730764350929,0.41715,2398.5,2398.4,1.09239844]
[1730764351134,0.41715,2398.5,2398.4,2.56957017]
[1730764351833,4.58675,2398.5,2398.4,2.56957017]
[1730764352335,5.05945,2398.5,2398.4,1.66054141]
[1730764352830,0.41715,2398.5,2398.4,1.66054141]
[1730764353323,0.41715,2398.5,2398.4,1.66039731]
[1730764353528,4.58675,2398.5,2398.4,1.66039731]
[1730764353730,4.58675,2398.5,2398.4,1.66032201]
[1730764355136,0.41715,2398.5,2398.4,1.66032201]
[1730764355534,0.41715,2398.5,2398.4,0.56792357]
[1730764356034,4.58675,2398.5,2398.4,0.56792357]
[1730764356229,1.04302,2398.2,2397.8,0.9405]
[1730764356432,0.41724,2398.0,2397.9,0.9082282]
[1730764356629,0.41726,2397.9,2397.8,0.9405]
[1730764356937,41.21726,2397.9,2397.8,1.84872408]
[1730764358334,41.21726,2397.9,2397.8,0.9405]
[1730764359130,0.41731,2397.6,2397.5,4.9029404]
[1730764359333,11.05646625,2397.6,2397.5,4.9029404]
[1730764359626,11.05646625,2397.6,2397.5,2.73086397]
[1730764361736,11.53846625,2397.6,2397.5,2.52496397]
[1730764363839,11.12115625,2397.6,2397.2,5.44771156]
[1730764364035,0.41736,2397.3,2397.2,5.44771156]
[1730764364335,3.62516,2397.3,2397.2,5.44771156]
[1730764364528,7.79636,2397.3,2397.2,5.44771156]
[1730764364941,4.58856,2397.3,2397.2,5.44771156]
[1730764365140,7.79636,2397.3,2397.2,5.44771156]
[1730764365943,3.62516,2397.3,2397.2,5.44771156]
[1730764369147,0.41742,2397.0,2396.8,3.6619]
[1730764369449,3.2078,2397.4,2396.8,3.6619]
[1730764369640,0.41738,2397.2,2396.8,3.6619]
[1730764369846,0.41738,2397.2,2397.0,0.41741]
[1730764370241,0.41738,2397.2,2397.1,0.4925]
[1730764371846,7.43215625,2397.2,2396.8,0.4541]
[1730764372148,7.43215625,2397.2,2396.8,0.9344]
[1730764372149,6.88538625,2396.9,2396.8,0.9344]
[1730764372540,0.4175,2396.5,2396.4,0.4776]
[1730764372745,0.4175,2396.5,2396.4,5.5549092]
[1730764373044,0.4175,2396.5,2396.4,8.8376598]
[1730764373242,41.2175,2396.5,2396.4,8.8376598]
[1730764373945,40.8,2396.5,2396.4,8.8376598]
[1730764374151,41.2175,2396.5,2396.4,9.2551798]
[1730764374350,41.2175,2396.5,2396.4,8.8376598]
[1730764376744,0.4175,2396.5,2396.4,8.8376598]
[1730764377454,0.41749,2396.6,2396.5,0.41749]
[1730764377654,40.8,2396.7,2396.4,9.2551698]
[1730764377655,0.4175,2396.5,2396.4,9.2551698]
[1730764377851,3.2078,2396.9,2396.4,1.84411]
[1730764378144,0.41749,2396.6,2396.5,0.41749]
[1730764378452,0.41749,2396.6,2396.4,1.4266]
[1730764378453,0.41749,2396.6,2396.4,1.8441]
[1730764379244,0.4175,2396.5,2396.4,1.8441]
[1730764379549,40.8,2396.8,2396.4,1.8441]
[1730764379848,0.4175,2396.5,2396.4,1.8441]
[1730764380746,0.4175,2396.5,2396.4,6.01691]
[1730764380953,0.41746,2396.8,2396.6,0.41747]
[1730764381245,0.41746,2396.7,2396.6,0.41747]
[1730764381643,0.41746,2396.7,2396.5,0.41749]
[1730764381844,3.2078,2396.9,2396.4,1.84411]
[1730764382044,0.4175,2396.5,2396.4,1.84411]
[1730764382453,0.4175,2396.5,2396.4,6.01691]
[1730764382658,0.4175,2396.5,2396.4,1.4266]
[1730764386256,0.4175,2396.5,2396.4,5.5994]
[1730764386457,0.4175,2396.5,2396.4,6.01691]
[1730764390355,0.4175,2396.5,2396.4,1.84411]
[1730764390556,0.4175,2396.5,2396.4,6.01691]